fUSD/lending_fUSD_20250809
["ID","MTS","AMOUNT","RATE_DAILY","PERIOD"]
[378156215,1754751052375,-400.0,0.00024931,2]
[378156216,1754751052384,-400.0,0.00024931,2]
[378156217,1754751052393,-400.0,0.00024931,2]
[378156218,1754751052402,-400.0,0.00024931,2]
[378156219,1754751052411,-513.29,0.00024931,2]
[378156220,1754751052420,-646.92,0.00024931,2]
[378156221,1754751052431,-400.0,0.00024931,2]
[378156222,1754751052440,-400.0,0.00024931,2]
[378156223,1754751052449,-400.0,0.00024931,2]
[378156224,1754751052458,-400.0,0.00024931,2]
[378156225,1754751052467,-400.0,0.00024931,2]
[378156226,1754751052477,-803.25,0.00024931,2]
[378156227,1754751052486,-996.82,0.00024931,2]
[378156228,1754751052495,-373.14994012,0.00024931,2]
[378156229,1754751052505,-400.0,0.00024931,2]
[378156230,1754751052514,-400.0,0.00024931,2]
[378156231,1754751052527,-400.0,0.00024931,2]
[378156232,1754751052536,-400.0,0.00024931,2]
[378156233,1754751052545,-400.0,0.00024931,2]
[378156234,1754751052555,-991.53,0.00024931,2]
[378156235,1754751052565,-536.26,0.00024931,2]
[378156236,1754751052575,-400.0,0.00024931,2]
[378156237,1754751052584,-400.0,0.00024931,2]
[378156238,1754751052594,-400.0,0.00024931,2]
[378156239,1754751052603,-400.0,0.00024931,2]
[378156240,1754751052612,-400.0,0.00024931,2]
[378156241,1754751052622,-400.0,0.00024931,2]
[378156242,1754751052633,-480.62,0.00024931,2]
[378156243,1754751052645,-400.0,0.00024931,2]
[378156244,1754751052655,-1531.81,0.00024931,2]
[378156245,1754751052664,-400.0,0.00024931,2]
[378156246,1754751052674,-481.86,0.00024931,2]
[378156247,1754751052683,-894.66,0.00024931,2]
[378156248,1754751052693,-400.0,0.00024931,2]
[378156249,1754751052703,-824.47,0.00024931,2]
[378156250,1754751052712,-400.0,0.00024931,2]
[378156251,1754751052721,-400.0,0.00024931,2]
[378156252,1754751052731,-207.97262815,0.00024931,2]
[378156253,1754751052740,-400.0,0.00024931,2]
[378156254,1754751052749,-400.0,0.00024931,2]
[378156255,1754751052759,-400.0,0.00024931,2]
[378156256,1754751052768,-400.0,0.00024931,2]
[378156257,1754751052778,-400.0,0.00024931,2]
[378156258,1754751052787,-1471.27,0.00024931,2]
[378156259,1754751052797,-400.0,0.00024931,2]
[378156260,1754751052807,-400.0,0.00024931,2]
[378156261,1754751052816,-457.76,0.00024931,2]
[378156262,1754751052825,-527.54,0.00024931,2]
[378156263,1754751052834,-527.24,0.00024931,2]
[378156264,1754751052844,-855.34,0.00024931,2]
[378156265,1754751052853,-595.78,0.00024931,2]
[378156266,1754751052862,-401.06,0.00024931,2]
[378156267,1754751052871,-582.3,0.00024931,2]
[378156268,1754751052880,-994.75,0.00024931,2]
[378156269,1754751052889,-400.0,0.00024931,2]
[378156270,1754751052897,-636.18,0.00024931,2]
[378156271,1754751052906,-400.0,0.00024931,2]
[378156272,1754751052916,-437.43,0.00024931,2]
[378156273,1754751052925,-400.0,0.00024931,2]
[378156274,1754751052935,-400.0,0.00024931,2]
[378156275,1754751052944,-1489.21,0.00024931,2]
[378156276,1754751052954,-400.0,0.00024931,2]
[378156277,1754751052963,-456.9,0.00024931,2]
[378156278,1754751052973,-1133.3,0.00024931,2]
[378156279,1754751052982,-400.0,0.00024931,2]
[378156280,1754751052991,-3209.13,0.00024931,2]
[378156281,1754751053000,-400.0,0.00024931,2]
[378156282,1754751053009,-400.0,0.00024931,2]
[378156283,1754751053019,-400.0,0.00024931,2]
[378156284,1754751053028,-400.0,0.00024931,2]
[378156285,1754751053037,-4148.35,0.00024931,2]
[378156286,1754751053046,-421.05,0.00024931,2]
[378156287,1754751053056,-211.0,0.00024932,7]
[378156288,1754751053065,-500.0,0.00024937,2]
[378156289,1754751053075,-3272.76406313,0.00024953,2]
[378156290,1754751053085,-2088.11,0.0002496,2]
[378156291,1754751053095,-500.0,0.00024973,2]
[378156292,1754751053104,-210.02632908,0.0002498,2]
[378156293,1754751053113,-308.9,0.00025,2]
[378156294,1754751053123,-167.0,0.00025,7]
[378156295,1754751053133,-211.0,0.00025,7]
[378156296,1754751053142,-168.0,0.00025077,2]
[378156297,1754751053152,-500.0,0.00025094,2]
[378156298,1754751053162,-24967.85884,0.00025095,2]
[378156299,1754751053171,-200.0,0.000251,7]
[378156300,1754751053181,-8220.7669,0.00025105,2]
[378156301,1754751053190,-482.84854517,0.00025105,2]
[378156302,1754751053201,-174.52961318,0.00025105,2]
[378156303,1754751053210,-888.0,0.00025156,3]
[378156304,1754751053219,-888.0,0.00025157,3]
[378156305,1754751053228,-217.461,0.00025172,2]
[378156306,1754751053238,-24967.85884,0.00025184,2]
[378156307,1754751053248,-49935.7176799,0.00025185,2]
[378156308,1754751053257,-154.9156173,0.00025185,2]
[378156309,1754751053267,-37807.31092039,0.00025187,2]
[378156310,1754751053634,-458.52,0.00024657,2]
[378156311,1754751053645,-13713.231618,0.00025187,2]
[378156317,1754751327700,175.0,0.00026,120]
[378156326,1754751778804,155.53,0.00013699,2]
[378156333,1754751939833,81.53354053,0.00025999,120]
[378156337,1754752008539,191.99,0.00017843,2]
[378156352,1754752232154,-191.99,0.00019574,2]
[378156353,1754752232164,-192.42443129,0.0002,2]
[378156354,1754752232190,-1526.52501,0.0002,2]
[378156355,1754752232203,-1803.42955069,0.0002,2]
[378156356,1754752232213,-303.01,0.00020415,2]
[378156357,1754752232223,-191.99,0.00021304,2]
[378156358,1754752232233,-3578.0,0.000214,5]
[378156359,1754752232242,-156.59,0.000222,2]
[378156360,1754752232252,-1200.0,0.00022297,2]
[378156361,1754752232262,-1200.0,0.00022659,2]
[378156362,1754752232272,-150.0,0.0002266,2]
[378156363,1754752232282,-150.0,0.0002266,2]
[378156364,1754752232292,-150.0,0.0002266,2]
[378156366,1754752232302,-150.0,0.0002266,2]
[378156367,1754752232311,-150.0,0.0002266,2]
[378156368,1754752232322,-150.0,0.0002266,2]
[378156370,1754752232332,-150.0,0.0002266,2]
[378156371,1754752232342,-150.0,0.0002266,2]
[378156372,1754752232352,-150.0,0.0002266,2]
[378156373,1754752232362,-191.99,0.00023035,2]
[378156374,1754752232372,-175.79,0.00023093,2]
[378156375,1754752232382,-1000.0,0.0002317,2]
[378156376,1754752232392,-500.0,0.00023419,2]
[378156377,1754752232402,-447.40404861,0.00023419,2]
[378156378,1754752232413,-500.0,0.00023419,2]
[378156379,1754752232423,-16103.51,0.0002342,2]
[378156380,1754752232434,-170.0,0.00023475,7]
[378156381,1754752232444,-165.72,0.00023607,2]
[378156382,1754752232456,-164.54,0.00023657,2]
[378156383,1754752232465,-167.64,0.00023705,2]
[378156384,1754752232475,-204.55,0.0002381,2]
[378156385,1754752232484,-500.0,0.00023835,2]
[378156386,1754752232494,-252.15,0.00023874,2]
[378156387,1754752232503,-161.43,0.00024069,2]
[378156388,1754752232513,-247.0,0.000242,2]
[378156389,1754752232523,-151.0,0.00024528,2]
[378156390,1754752232532,-239.84119403,0.00024528,2]
[378156391,1754752232541,-174.52961318,0.00024556,2]
[378156392,1754752232551,-2679.07197007,0.00024556,2]
[378156393,1754752232560,-5000.0,0.00024557,2]
[378156394,1754752232570,-2500.0,0.00024557,2]
[378156395,1754752232579,-2031.07664197,0.00024632,2]
[378156396,1754752232588,-2763.32713993,0.00024642,2]
[378156397,1754752232598,-300.0,0.00024642,2]
[378156398,1754752232607,-600.0,0.00024642,2]
[378156399,1754752232617,-300.0,0.00024642,2]
[378156400,1754752232627,-151.0,0.00024642,2]
[378156401,1754752232637,-160.0,0.00024642,2]
[378156402,1754752232646,-300.0,0.00024642,2]
[378156403,1754752232656,-401.19111454,0.00024642,2]
[378156404,1754752232667,-497.9837557,0.00024642,2]
[378156405,1754752232677,-300.0,0.00024642,2]
[378156406,1754752232687,-300.0,0.00024642,2]
[378156407,1754752232696,-300.0,0.00024642,2]
[378156408,1754752232709,-300.0,0.00024642,2]
[378156409,1754752232719,-400.0,0.00024642,2]
[378156410,1754752232729,-250.0,0.00024642,2]
[378156411,1754752232740,-250.0,0.00024642,2]
[378156412,1754752232751,-250.0,0.00024642,2]
[378156413,1754752232761,-250.0,0.00024642,2]
[378156414,1754752232771,-250.0,0.00024642,2]
[378156415,1754752232782,-288.2447728,0.00024642,2]
[378156416,1754752232791,-500.0,0.00024642,2]
[378156417,1754752232801,-250.0,0.00024642,2]
[378156418,1754752232811,-151.0,0.00024642,2]
[378156419,1754752232821,-500.0,0.00024642,2]
[378156422,1754752232833,-250.0,0.00024642,2]
[378156424,1754752232843,-151.0,0.00024642,2]
[378156426,1754752232852,-250.0,0.00024642,2]
[378156428,1754752232862,-500.0,0.00024642,2]
[378156430,1754752232872,-151.0,0.00024642,2]
[378156432,1754752232881,-250.0,0.00024642,2]
[378156434,1754752232890,-500.0,0.00024642,2]
[378156436,1754752232900,-151.0,0.00024642,2]
[378156438,1754752232909,-250.0,0.00024642,2]
[378156440,1754752232919,-500.0,0.00024642,2]
[378156442,1754752232928,-500.0,0.00024642,2]
[378156444,1754752232938,-200.0,0.00024642,2]
[378156446,1754752232947,-500.0,0.00024642,2]
[378156448,1754752232959,-250.0,0.00024642,2]
[378156449,1754752232968,-500.0,0.00024642,2]
[378156450,1754752232977,-250.0,0.00024642,2]
[378156451,1754752232987,-500.0,0.00024642,2]
[378156452,1754752232997,-250.0,0.00024642,2]
[378156453,1754752233007,-500.0,0.00024642,2]
[378156454,1754752233017,-250.0,0.00024642,2]
[378156455,1754752233026,-500.0,0.00024642,2]
[378156456,1754752233036,-250.0,0.00024642,2]
[378156457,1754752233046,-500.0,0.00024642,2]
[378156458,1754752233056,-250.0,0.00024642,2]
[378156459,1754752233065,-500.0,0.00024642,2]
[378156460,1754752233075,-500.0,0.00024642,2]
[378156461,1754752233084,-500.0,0.00024642,2]
[378156462,1754752233095,-500.0,0.00024642,2]
[378156463,1754752233105,-500.0,0.00024642,2]
[378156464,1754752233116,-500.0,0.00024642,2]
[378156465,1754752233126,-532.99137518,0.00024642,2]
[378156466,1754752233136,-500.0,0.00024642,2]
[378156467,1754752233147,-500.0,0.00024642,2]
[378156468,1754752233159,-500.0,0.00024642,2]
[378156469,1754752233170,-500.0,0.00024642,2]
[378156470,1754752233180,-500.0,0.00024642,2]
[378156471,1754752233192,-500.0,0.00024642,2]
[378156472,1754752233202,-500.0,0.00024642,2]
[378156473,1754752233213,-500.0,0.00024642,2]
[378156474,1754752233222,-500.0,0.00024642,2]
[378156475,1754752233232,-500.0,0.00024642,2]
[378156476,1754752233242,-500.0,0.00024642,2]
[378156477,1754752233252,-184.28358384,0.00024656,2]
[378156478,1754752233262,-440.74360898,0.00024656,2]
[378156479,1754752233272,-499.71,0.00024656,2]
[378156480,1754752233283,-400.0,0.00024656,2]
[378156481,1754752233293,-567.92,0.00024656,2]
[378156482,1754752233303,-400.0,0.00024656,2]
[378156483,1754752233312,-429.87,0.00024656,2]
[378156484,1754752233322,-400.0,0.00024656,2]
[378156485,1754752233332,-511.61,0.00024656,2]
[378156486,1754752233342,-560.73,0.00024656,2]
[378156487,1754752233351,-400.0,0.00024656,2]
[378156488,1754752233360,-418.66,0.00024656,2]
[378156489,1754752233370,-479.48,0.00024656,2]
[378156490,1754752233380,-583.22,0.00024656,2]
[378156491,1754752233390,-400.0,0.00024656,2]
[378156492,1754752233399,-400.0,0.00024656,2]
[378156493,1754752233409,-407.65,0.00024656,2]
[378156494,1754752233419,-515.15,0.00024656,2]
[378156495,1754752233429,-400.0,0.00024656,2]
[378156496,1754752233438,-400.0,0.00024656,2]
[378156497,1754752233448,-400.0,0.00024656,2]
[378156498,1754752233458,-400.0,0.00024656,2]
[378156499,1754752233468,-400.0,0.00024656,2]
[378156500,1754752233477,-400.0,0.00024656,2]
[378156501,1754752233487,-400.0,0.00024656,2]
[378156502,1754752233497,-400.0,0.00024656,2]
[378156503,1754752233507,-408.73,0.00024656,2]
[378156504,1754752233516,-400.0,0.00024656,2]
[378156505,1754752233526,-400.0,0.00024656,2]
[378156506,1754752233544,-487.09,0.00024656,2]
[378156507,1754752233556,-664.43,0.00024656,2]
[378156508,1754752233566,-400.0,0.00024656,2]
[378156509,1754752233576,-625.37,0.00024656,2]
[378156510,1754752233586,-500.0,0.00024656,2]
[378156511,1754752233596,-1025.03,0.00024656,2]
[378156512,1754752233606,-495.88,0.00024656,2]
[378156513,1754752233616,-640.97,0.00024656,2]
[378156514,1754752233626,-400.0,0.00024656,2]
[378156515,1754752233635,-400.0,0.00024656,2]
[378156516,1754752233645,-764.25078593,0.00024656,2]
[378156517,1754752233655,-547.46,0.00024656,2]
[378156518,1754752233665,-400.0,0.00024656,2]
[378156519,1754752233676,-400.0,0.00024656,2]
[378156520,1754752233686,-400.0,0.00024656,2]
[378156521,1754752233696,-400.0,0.00024656,2]
[378156522,1754752233706,-418.51598769,0.00024656,2]
[378156523,1754752233716,-400.0,0.00024656,2]
[378156524,1754752233727,-400.0,0.00024656,2]
[378156525,1754752233737,-400.0,0.00024656,2]
[378156526,1754752233747,-979.77,0.00024656,2]
[378156527,1754752233758,-535.88,0.00024656,2]
[378156528,1754752233768,-727.55,0.00024656,2]
[378156529,1754752233778,-515.24,0.00024656,2]
[378156530,1754752233788,-1032.06,0.00024656,2]
[378156531,1754752233798,-516.83,0.00024656,2]
[378156532,1754752233808,-400.0,0.00024656,2]
[378156533,1754752233818,-433.95,0.00024656,2]
[378156534,1754752233828,-537.99,0.00024656,2]
[378156535,1754752233838,-400.0,0.00024656,2]
[378156536,1754752233848,-557.68,0.00024656,2]
[378156537,1754752233858,-693.09,0.00024656,2]
[378156538,1754752233868,-400.0,0.00024656,2]
[378156539,1754752233879,-400.0,0.00024656,2]
[378156540,1754752233889,-400.0,0.00024656,2]
[378156541,1754752233900,-400.0,0.00024656,2]
[378156542,1754752233910,-484.63,0.00024656,2]
[378156543,1754752233920,-449.79,0.00024656,2]
[378156544,1754752233930,-152.788791,0.00024656,2]
[378156545,1754752233940,-577.27,0.00024656,2]
[378156546,1754752233950,-400.0,0.00024656,2]
[378156547,1754752233960,-400.0,0.00024656,2]
[378156548,1754752233970,-713.008152,0.00024656,2]
[378156549,1754752233980,-617.34,0.00024656,2]
[378156550,1754752233990,-522.52,0.00024656,2]
[378156551,1754752233999,-400.0,0.00024656,2]
[378156552,1754752234009,-2100.13,0.00024656,2]
[378156553,1754752234018,-820.34,0.00024656,2]
[378156554,1754752234029,-400.0,0.00024656,2]
[378156555,1754752234039,-400.0,0.00024656,2]
[378156556,1754752234048,-400.0,0.00024656,2]
[378156557,1754752234058,-543.82,0.00024656,2]
[378156558,1754752234067,-420.53,0.00024656,2]
[378156559,1754752234077,-400.0,0.00024656,2]
[378156560,1754752234087,-659.83,0.00024656,2]
[378156561,1754752234200,-2129.61,0.00024656,2]
[378156562,1754752234212,-1451.152058,0.00024656,2]
[378156563,1754752234221,-400.0,0.00024656,2]
[378156564,1754752234230,-514.31,0.00024656,2]
[378156565,1754752234240,-400.0,0.00024656,2]
[378156566,1754752234249,-400.0,0.00024656,2]
[378156567,1754752234259,-413.46,0.00024656,2]
[378156568,1754752234269,-1431.270005,0.00024656,2]
[378156569,1754752234279,-632.13,0.00024656,2]
[378156570,1754752234289,-459.94,0.00024656,2]
[378156571,1754752234299,-433.65,0.00024656,2]
[378156572,1754752234309,-156.788371,0.00024656,2]
[378156573,1754752234319,-497.03,0.00024656,2]
[378156574,1754752234328,-645.46,0.00024656,2]
[378156575,1754752234338,-513.08,0.00024656,2]
[378156576,1754752234347,-400.0,0.00024656,2]
[378156577,1754752234357,-476.76,0.00024656,2]
[378156578,1754752234367,-433.76,0.00024656,2]
[378156579,1754752234378,-614.11,0.00024656,2]
[378156580,1754752234387,-400.0,0.00024656,2]
[378156581,1754752234398,-541.45,0.00024656,2]
[378156582,1754752234408,-400.0,0.00024656,2]
[378156583,1754752234417,-812.66,0.00024656,2]
[378156584,1754752234427,-400.0,0.00024656,2]
[378156585,1754752234437,-584.79,0.00024656,2]
[378156586,1754752234447,-1020.81,0.00024656,2]
[378156587,1754752234459,-400.0,0.00024656,2]
[378156588,1754752234469,-400.0,0.00024656,2]
[378156589,1754752234478,-400.0,0.00024656,2]
[378156590,1754752234488,-400.0,0.00024656,2]
[378156591,1754752234499,-153.631767,0.00024656,2]
[378156592,1754752234508,-417.3,0.00024656,2]
[378156593,1754752234518,-508.7,0.00024656,2]
[378156594,1754752234527,-501.17,0.00024656,2]
[378156595,1754752234538,-1762.13,0.00024656,2]
[378156596,1754752234548,-457.83,0.00024656,2]
[378156597,1754752234558,-521.71,0.00024656,2]
[378156598,1754752234568,-400.0,0.00024656,2]
[378156599,1754752234578,-400.0,0.00024656,2]
[378156600,1754752234588,-706.78,0.00024656,2]
[378156601,1754752234598,-400.0,0.00024656,2]
[378156602,1754752234607,-615.62,0.00024656,2]
[378156603,1754752234616,-464.25,0.00024656,2]
[378156604,1754752234626,-723.72,0.00024656,2]
[378156605,1754752234636,-400.0,0.00024656,2]
[378156606,1754752234646,-400.0,0.00024656,2]
[378156607,1754752234656,-400.0,0.00024656,2]
[378156608,1754752234666,-400.0,0.00024656,2]
[378156609,1754752234676,-445.94,0.00024656,2]
[378156610,1754752234686,-613.08,0.00024656,2]
[378156611,1754752234695,-400.0,0.00024656,2]
[378156612,1754752234707,-400.0,0.00024656,2]
[378156613,1754752234716,-400.0,0.00024656,2]
[378156614,1754752234726,-695.42,0.00024656,2]
[378156615,1754752234736,-410.8,0.00024656,2]
[378156616,1754752234745,-400.0,0.00024656,2]
[378156617,1754752234755,-588.67,0.00024656,2]
[378156618,1754752234764,-400.0,0.00024656,2]
[378156619,1754752234773,-520.71,0.00024656,2]
[378156620,1754752234783,-400.0,0.00024656,2]
[378156621,1754752234793,-546.14,0.00024656,2]
[378156622,1754752234803,-400.0,0.00024656,2]
[378156623,1754752234813,-400.0,0.00024656,2]
[378156624,1754752234822,-749.55,0.00024656,2]
[378156625,1754752234831,-400.0,0.00024656,2]
[378156626,1754752234841,-400.0,0.00024656,2]
[378156627,1754752234850,-461.89,0.00024656,2]
[378156628,1754752235067,-3102.16,0.00024656,2]
[378156629,1754752235077,-400.0,0.00024656,2]
[378156630,1754752235086,-400.0,0.00024656,2]
[378156631,1754752235096,-400.0,0.00024656,2]
[378156632,1754752235105,-400.0,0.00024656,2]
[378156633,1754752235116,-507.76,0.00024656,2]
[378156634,1754752235127,-913.76,0.00024656,2]
[378156635,1754752235137,-400.0,0.00024656,2]
[378156636,1754752235146,-400.0,0.00024656,2]
[378156637,1754752235155,-400.0,0.00024657,2]
[378156638,1754752235166,-400.0,0.00024657,2]
[378156639,1754752235176,-400.0,0.00024657,2]
[378156640,1754752235185,-400.0,0.00024657,2]
[378156641,1754752235198,-400.0,0.00024657,2]
[378156642,1754752235209,-431.75008563,0.00024657,2]
[378156643,1754752235219,-263.75624559,0.00024657,2]
[378156644,1754752235229,-400.0,0.00024657,2]
[378156645,1754752235239,-400.0,0.00024657,2]
[378156646,1754752235249,-303.14011959,0.00024657,2]
[378156647,1754752235258,-400.0,0.00024657,2]
[378156648,1754752235268,-400.0,0.00024657,2]
[378156649,1754752235278,-400.0,0.00024657,2]
[378156650,1754752235287,-400.0,0.00024657,2]
[378156651,1754752235297,-400.0,0.00024657,2]
[378156652,1754752235307,-400.0,0.00024657,2]
[378156653,1754752235316,-400.0,0.00024657,2]
[378156654,1754752235328,-475.27895422,0.00024657,2]
[378156655,1754752235338,-400.0,0.00024657,2]
[378156656,1754752235348,-400.0,0.00024657,2]
[378156657,1754752235357,-400.0,0.00024657,2]
[378156658,1754752235366,-400.0,0.00024657,2]
[378156659,1754752235376,-400.0,0.00024657,2]
[378156660,1754752235386,-400.0,0.00024657,2]
[378156661,1754752235395,-249.0984595,0.00024657,2]
[378156662,1754752235404,-400.0,0.00024657,2]
[378156663,1754752235414,-400.0,0.00024657,2]
[378156664,1754752235423,-400.0,0.00024657,2]
[378156665,1754752235432,-168.25,0.00024657,2]
[378156666,1754752235443,-299.0793243,0.00024657,2]
[378156667,1754752235453,-400.0,0.00024657,2]
[378156668,1754752235463,-400.0,0.00024657,2]
[378156669,1754752235472,-400.0,0.00024657,2]
[378156670,1754752235481,-400.0,0.00024657,2]
[378156671,1754752235491,-400.0,0.00024657,2]
[378156672,1754752235501,-400.0,0.00024657,2]
[378156673,1754752235511,-400.0,0.00024657,2]
[378156674,1754752235521,-546.88,0.00024657,2]
[378156675,1754752235531,-400.0,0.00024657,2]
[378156676,1754752235542,-716.49,0.00024657,2]
[378156677,1754752235552,-400.0,0.00024657,2]
[378156678,1754752235561,-440.57,0.00024657,2]
[378156679,1754752235571,-400.0,0.00024657,2]
[378156680,1754752235580,-400.0,0.00024657,2]
[378156681,1754752235590,-268.50014139,0.00024657,2]
[378156682,1754752235600,-422.67,0.00024657,2]
[378156683,1754752235610,-400.0,0.00024657,2]
[378156684,1754752235619,-400.0,0.00024657,2]
[378156685,1754752235629,-400.0,0.00024657,2]
[378156686,1754752235638,-400.0,0.00024657,2]
[378156687,1754752235649,-483.58,0.00024657,2]
[378156688,1754752235658,-400.0,0.00024657,2]
[378156689,1754752235668,-400.0,0.00024657,2]
[378156690,1754752235677,-400.0,0.00024657,2]
[378156691,1754752235687,-281.92866163,0.00024657,2]
[378156692,1754752235697,-700.59,0.00024657,2]
[378156693,1754752235707,-400.0,0.00024657,2]
[378156694,1754752235716,-400.0,0.00024657,2]
[378156695,1754752235726,-400.0,0.00024657,2]
[378156696,1754752235736,-400.0,0.00024657,2]
[378156697,1754752235746,-400.0,0.00024657,2]
[378156698,1754752235755,-400.0,0.00024657,2]
[378156699,1754752235765,-400.0,0.00024657,2]
[378156700,1754752235775,-495.09,0.00024657,2]
[378156701,1754752235784,-400.0,0.00024657,2]
[378156702,1754752235794,-400.0,0.00024657,2]
[378156703,1754752235803,-400.0,0.00024657,2]
[378156704,1754752235813,-400.0,0.00024657,2]
[378156705,1754752235822,-1000.0,0.00024657,2]
[378156706,1754752235831,-400.0,0.00024657,2]
[378156707,1754752235841,-400.0,0.00024657,2]
[378156708,1754752235851,-409.23,0.00024657,2]
[378156709,1754752235860,-400.0,0.00024657,2]
[378156710,1754752235869,-400.0,0.00024657,2]
[378156711,1754752235879,-400.0,0.00024657,2]
[378156712,1754752235888,-400.0,0.00024657,2]
[378156713,1754752235898,-400.0,0.00024657,2]
[378156714,1754752235908,-418.83,0.00024657,2]
[378156715,1754752235918,-400.0,0.00024657,2]
[378156716,1754752235927,-439.42,0.00024657,2]
[378156717,1754752235937,-545.73,0.00024657,2]
[378156718,1754752235947,-400.0,0.00024657,2]
[378156719,1754752235959,-400.0,0.00024657,2]
[378156720,1754752235969,-400.0,0.00024657,2]
[378156721,1754752235978,-400.0,0.00024657,2]
[378156722,1754752235988,-440.41,0.00024657,2]
[378156723,1754752235998,-400.0,0.00024657,2]
[378156724,1754752236007,-400.0,0.00024657,2]
[378156725,1754752236017,-400.0,0.00024657,2]
[378156726,1754752236027,-658.35,0.00024657,2]
[378156727,1754752236037,-400.0,0.00024657,2]
[378156728,1754752236046,-400.0,0.00024657,2]
[378156729,1754752236056,-400.0,0.00024657,2]
[378156730,1754752236066,-400.0,0.00024657,2]
[378156731,1754752236075,-400.0,0.00024657,2]
[378156732,1754752236085,-400.0,0.00024657,2]
[378156733,1754752236095,-400.0,0.00024657,2]
[378156734,1754752236104,-400.0,0.00024657,2]
[378156735,1754752236116,-400.0,0.00024657,2]
[378156736,1754752236125,-400.0,0.00024657,2]
[378156737,1754752236135,-400.0,0.00024657,2]
[378156738,1754752236145,-400.0,0.00024657,2]
[378156739,1754752236154,-62.80308362,0.00024657,2]
[378156740,1754752236314,-888.0,0.00020074,3]
[378156741,1754752236324,-1776.0,0.00022314,3]
[378156742,1754752236333,-76.47810003,0.00024657,2]
[378156743,1754752238023,-888.0,0.00020574,3]
[378156745,1754752238032,-1776.0,0.00022814,3]
[378156747,1754752238042,-400.0,0.00024656,2]
[378156748,1754752238052,-135.048,0.00024657,2]
[378156749,1754752238252,-888.0,0.00021074,3]
[378156750,1754752238262,-284.07081635,0.00024657,2]
[378156751,1754752238272,-400.0,0.00024657,2]
[378156752,1754752238282,-441.21,0.00024657,2]
[378156753,1754752238291,-400.0,0.00024657,2]
[378156754,1754752238301,-400.0,0.00024657,2]
[378156755,1754752238311,-400.0,0.00024657,2]
[378156756,1754752238320,-400.0,0.00024657,2]
[378156757,1754752238330,-1873.36,0.00024657,2]
[378156758,1754752238339,-400.0,0.00024657,2]
[378156759,1754752238348,-400.0,0.00024657,2]
[378156760,1754752238358,-400.0,0.00024657,2]
[378156761,1754752238368,-728.82,0.00024657,2]
[378156762,1754752238378,-400.0,0.00024657,2]
[378156763,1754752238388,-400.0,0.00024657,2]
[378156764,1754752238397,-400.0,0.00024657,2]
[378156765,1754752238407,-400.0,0.00024657,2]
[378156766,1754752238416,-400.0,0.00024657,2]
[378156767,1754752238426,-445.38,0.00024657,2]
[378156768,1754752238435,-400.0,0.00024657,2]
[378156769,1754752238444,-2742.85,0.00024685,30]